Cogmind - Beta 15 @@@ ROGUE MODE // 2025.05.17 @ 16:39:57 Player: Fleshy Vegetable Bird Result: Destroyed by G-47 Trooper with Particle Gun Performance ------------- Evolutions (2) 1000 Regions Visited (7) 1400 Robots Destroyed (124) 620 Value Destroyed (4085) 4085 Prototype IDs (9) 180 Alien Tech Used (0) 0 Bonus (2177) 2177 TOTAL SCORE: 9462 Bonus ------- High Alert Combat Kills 761 Follower Combat Kills 216 Entered Garrisons 200 Used RIF Installer 1000 Cogmind --------- Core Integrity 0/550 Matter 217/300 Energy 235/240 System Corruption 6% Temperature Warning (311) Movement Treading (320) Ox2 Location -8/Materials Parts ------- > --- POWER (1) -------- Nuclear Core > --- PROPULSION (3) --- Light Treads Carbon-fiber Leg Wheel > --- UTILITY (4) ------ High-capacity Storage Unit Improved Signal Interpreter Improved Light Armor Plating Improved Light Armor Plating > --- WEAPON (3) ------- Heavy Laser Assault Rifle > --- INVENTORY (20) --- Cryofiber Web Structural Scanner Experimental Sensor Array Improved Terrain Scanner Improved Terrain Scan Processor Recoil Stabilizer Light Armor Plating Insulated Plating System Shield Authchip [R/Combat] Authchip [Device] Authchip [Processor] Relay Coupler [NC] (38) Relay Coupler [NC] (40) Relay Coupler [Sentry] (25) Plasma Cutter Heavy Hammer Peak State ------------ > --- POWER ------------ Light Nuclear Core > --- PROPULSION ------- Armored Treads Aluminum Leg Carbon-fiber Leg > --- UTILITY ---------- High-capacity Storage Unit Experimental Sensor Array Improved Signal Interpreter Hacking Suite > --- WEAPON ----------- Precision Beam Rifle Ion Cannon Gauss Rifle > --- INVENTORY -------- Light Nuclear Core Cryofiber Web Structural Scanner Improved Terrain Scanner Improved Terrain Scan Processor Advanced Targeting Computer Recoil Stabilizer Light Armor Plating Insulated Plating System Shield Authchip [R/Combat] Authchip [Device] Authchip [Processor] Relay Coupler [NC] Relay Coupler [NC] Relay Coupler [Grunt] Relay Coupler [Sentry] Improved Datajack Plasma Cutter Heavy Hammer [Rating: 42] Favorites ----------- Power Light Nuclear Core Engine Light Ion Engine Power Core Light Nuclear Core Propulsion Wheel Treads Armored Treads Leg Aluminum Leg Wheel Wheel Hover Unit Gravmag System Utility High-capacity Storage Unit Device Heat Sink Storage High-capacity Storage Unit Processor Advanced Targeting Computer Hackware Hacking Suite Protection Hardened Light Armor Plating Weapon Enhanced Autogun Energy Gun Medium Laser Energy Cannon Ion Cannon Ballistic Gun Enhanced Autogun Launcher Rocket Launcher Impact Weapon Heavy Hammer Special Melee Weapon Improved Datajack Build | -11 -10 -10 -10 -9 -8 -8 -8 ------- Run | Yrd Mat Min Exi Min Mat Gar Mat Slots Evolved 4 | . . . . . 4 . . Power . | . . . . . . . . Propulsion 1 | . . . . . 1 . . Utility 2 | . . . . . 2 . . Weapon 1 | . . . . . 1 . . Parts Attached 97 | 6 8 7 2 4 31 17 22 Power 13 | . 2 2 . 1 4 2 2 Engine 8 | . 2 2 . 1 2 . 1 Core 5 | . . . . . 2 2 1 Reactor . | . . . . . . . . Propulsion 27 | 2 3 3 1 1 7 4 6 Treads 3 | . . . . . 1 . 2 Leg 6 | . . . . . . 3 3 Wheel 17 | 2 3 3 1 1 6 . 1 Hover 1 | . . . . . . 1 . Flight . | . . . . . . . . Utility 31 | 2 2 . 1 1 10 7 8 Device 10 | 1 1 . . . 5 2 1 Storage 6 | 1 1 . 1 1 1 . 1 Processor 3 | . . . . . 1 1 1 Hackware 5 | . . . . . . 3 2 Protection 7 | . . . . . 3 1 3 Artifact . | . . . . . . . . Weapon 26 | 2 1 2 . 1 10 4 6 Energy Gun 9 | 2 . 2 . . 4 . 1 Energy Cannon 3 | . . . . . 2 . 1 Ballistic Gun 10 | . 1 . . . 3 3 3 Ballistic Cannon . | . . . . . . . . Launcher 1 | . . . . 1 . . . Special Weapon . | . . . . . . . . Impact Weapon 1 | . . . . . 1 . . Slashing Weapon . | . . . . . . . . Piercing Weapon . | . . . . . . . . Special Melee Weapon 2 | . . . . . . 1 1 Unidentified Prototypes 5 | . . . . . 5 . . Parts Lost 28 | . 5 3 . . 5 4 11 Power 5 | . 1 2 . . . . 2 Propulsion 11 | . 2 1 . . 2 2 4 Utility 5 | . 1 . . . 3 . 1 Weapon 7 | . 1 . . . . 2 4 Highest Loss Streak 5 | . 3 1 . . 2 2 5 To Critical Strikes 1 | . . 1 . . . . . Average Backups 16 | 5 8 13 13 14 15 19 19 Power 1 | . . 1 2 3 . . . Propulsion 1 | 3 3 2 2 1 . 1 . Utility 10 | . 1 6 7 6 9 13 15 Weapon 2 | 1 2 3 2 2 3 2 1 Tool/Special . | . . . . . . . . Unused Backups 39 | 2 . 3 3 1 8 5 17 Power 6 | . . . 1 . 3 . 2 Propulsion 6 | 2 . . . 1 1 2 . Utility 24 | . . 2 2 . 3 3 14 Weapon 2 | . . 1 . . 1 . . Tool/Special 1 | . . . . . . . 1 Average Slot Usage (%) 94 | . 90 96 100 100 93 93 96 Engine 4 | . 9 11 14 14 4 . . Core 5 | . . . . . 4 8 8 Treads 5 | . . . . . 4 8 6 Leg 6 | . . . . . . 8 17 Wheel 13 | . 27 27 28 28 19 4 1 Device 8 | . 11 14 14 14 9 4 7 Storage 10 | . 14 14 14 14 9 9 9 Processor 2 | . . . . . 5 2 6 Hackware 5 | . . . . . . 9 9 Protection 5 | . . . . . 8 9 3 Energy Gun 11 | . 15 27 28 19 11 5 6 Energy Cannon 2 | . . . . . 5 . 6 Ballistic Gun 8 | . 11 . . . 5 14 9 Launcher 1 | . . . . 8 1 . . Impact Weapon 2 | . . . . . 2 6 1 Peak Build Rating 42 | 8 9 11 12 14 35 35 42 Average Rating 24 | 3 6 9 11 12 25 32 34 On Entrance 14 | . 8 7 11 12 13 33 34 Naked Turns . | . . . . . . . . Heaviest Build 65 | 9 28 30 29 51 65 65 63 Greatest Support 40 | 20 20 20 20 20 30 20 40 Greatest Overweight (x) 6 | 2 1 1 1 2 5 6 5 Average Overweight (x) 1 | . . 1 1 1 2 2 2 Largest Inventory Capacity 20 | 8 15 15 15 20 20 20 20 Average Capacity 18 | 7 12 15 15 19 20 20 20 Most Carried 20 | 8 15 15 15 20 20 20 20 Average Carried 17 | 5 8 14 14 18 18 19 19 Final Capacity 20 | 8 15 15 15 20 20 20 20 Final Carried 19 | 7 14 14 15 19 19 19 17 Class Distribution -------------------- 33% | Scavenger-Mutant 26% | Bothacker-Mutant 11% | Gunner 10% | Scavenger-Gunner 9% | Mutant 4% | Bothacker-Tank 3% | Bothacker-Skirmisher Dominant Class ---------------- Scavenger-Mutant | -10/Materials Scavenger-Mutant | -10/Mines Scavenger-Mutant | -10/Exiles Scavenger-Mutant | -9/Mines Scavenger-Gunner | -8/Materials Bothacker-Mutant | -8/Garrison Bothacker-Tank | -8/Materials Resources | -11 -10 -10 -10 -9 -8 -8 -8 ----------- Run | Yrd Mat Min Exi Min Mat Gar Mat Matter Collected 2816 | 213 312 65 30 72 772 825 527 Remotely . | . . . . . . . . Salvage Created 4101 | 161 614 113 . 21 1486 862 844 Parts 243 | 13 41 6 . 10 85 48 40 Haulers Intercepted 8 | . 2 . . . 4 . 2 Recyclers Shooed 1 | . 1 . . . . . . Parts Field Recycled . | . . . . . . . . Retrieved Matter . | . . . . . . . . Parts Self-Destructed . | . . . . . . . . Prevented . | . . . . . . . . Kills | -11 -10 -10 -10 -9 -8 -8 -8 ------- Run | Yrd Mat Min Exi Min Mat Gar Mat Combat Hostiles Destroyed 83 | . 13 5 . 4 31 19 11 Guns 51 | . 13 5 . . 8 19 6 Cannons 16 | . . . . . 11 . 5 AOE 14 | . . . . 4 10 . . Classes Destroyed 16 | 2 6 . . . 4 3 1 Worker 8 | . 2 . . 1 3 . 2 Builder 4 | . 1 . . . 3 . . Tunneler 10 | 5 1 . . . 3 . 1 Hauler 8 | . 2 . . . 4 . 2 Recycler 4 | 1 1 . . . 1 . 1 Operator 2 | . . . . . 2 . . Watcher 5 | . 2 . . . 2 . 1 Swarmer 25 | . 9 4 . 4 8 . . Cutter 2 | . . . . . . 2 . Grunt 34 | . 4 1 . . 15 10 4 Brawler 2 | . . . . . 1 1 . Duelist 2 | . . . . . 1 . 1 Protector 1 | . . . . . . . 1 Sentry 10 | . . . . . 6 . 4 Hunter 4 | . . . . . . 3 1 Programmer 3 | . . . . . . 3 . Best Kill Streak 11 | 6 4 3 . 4 11 4 6 Combat Bots Only 8 | . 4 3 . 4 8 4 4 Max Kills in Single Turn 3 | 2 2 1 . 3 3 1 1 Gunslinging . | . . . . . . . . Exploded 3 | . . . . 3 3 . . Melee . | . . . . . . . . Uniques/NPCs Destroyed . | . . . . . . . . Combat | -11 -10 -10 -10 -9 -8 -8 -8 -------- Run | Yrd Mat Min Exi Min Mat Gar Mat Hostile Shots Fired 426 | . 72 31 . 2 90 117 114 Missed 103 | . 21 9 . . 30 23 20 Hits 323 | . 51 22 . 2 60 94 94 Melee 13 | . . . . . . 10 3 Projectile 310 | . 51 22 . 2 60 84 91 AOE 3 | . . . . . . 3 . Critical Strikes 20 | . . 1 . . 1 13 5 Damage Taken 4914 | . 479 290 . 81 1005 1542 1517 Core 756 | . 92 65 . 36 138 180 245 Absorbed by Shields . | . . . . . . . . Ignored by Resistances 54 | . . . . . . 54 . Regen/Repaired (Parts) 11 | . . . . . 11 . . Core Remaining (%) 61 | 100 . . . 22 . . . Volleys Fired 287 | 15 59 23 . 14 77 49 50 Largest 3 | 2 2 2 . 1 3 3 3 Hottest 171 | 90 70 115 . 65 171 161 149 Shots Fired 633 | 30 120 46 . 14 187 129 107 Gun 521 | 30 120 46 . 12 124 124 65 Cannon 98 | . . . . . 51 5 42 Launcher 14 | . . . . 2 12 . . Special . | . . . . . . . . Kinetic 257 | . 60 . . . 50 105 42 Thermal 356 | 30 60 46 . 12 119 24 65 Explosive 14 | . . . . 2 12 . . Electromagnetic 6 | . . . . . 6 . . Robot Hit Streak 17 | 8 15 7 . 4 17 16 15 Robot Miss Streak 12 | 2 12 3 . 2 5 3 4 Penetration Max 1 | . . . . . . 1 . Secondary Targets 7 | . 1 . . . . 5 1 Max Gunslinging Chain 1 | . 1 . . . . 1 1 Shots Hit Robots 384 | 18 71 27 . 9 104 81 74 Core Hits 197 | 7 32 7 . 5 77 39 30 Critical Kills 1 | . . . . . . 1 . Critical Parts Destroyed 1 | . 1 . . . . . . Critical Strikes 25 | 3 8 4 . 1 6 3 . Burn 23 | 3 7 4 . 1 6 2 . Destroy 2 | . 1 . . . . 1 . Melee Attacks 47 | . . . . . 10 28 9 Impact 41 | . . . . . 10 27 4 Slashing . | . . . . . . . . Piercing . | . . . . . . . . Sneak Attacks 4 | . . . . . 2 . 2 Combat Hostiles . | . . . . . . . . Follow-up Attacks . | . . . . . . . . Damage Inflicted 8321 | 239 937 340 . 347 3582 1581 1295 Guns 4699 | 239 937 335 . 131 949 1481 627 Cannons 1547 | . . . . . 875 100 572 Explosions 1707 | . . . . 216 1491 . . Melee 363 | . . . . . 267 . 96 Ramming 5 | . . 5 . . . . . Kinetic 2269 | . 427 . . . 307 1206 329 Thermal 4134 | 239 510 335 . 131 1674 375 870 Explosive 1493 | . . . . 216 1277 . . Electromagnetic 57 | . . . . . 57 . . Impact 363 | . . . . . 267 . 96 Slashing . | . . . . . . . . Piercing . | . . . . . . . . Highest Corruption 6 | . 1 1 1 1 4 6 6 Average Corruption 3 | . 1 1 1 1 4 5 6 Corruption Purged . | . . . . . . . . Corruption Blocked . | . . . . . . . . Effects 135 | . 7 5 3 5 10 65 40 Message Errors 39 | . 2 . 3 3 3 18 10 Matter Fused 26 | . . . . 1 . 18 7 Heat Flow Errors 16 | . . 1 . . 3 7 5 Energy Discharges 13 | . 1 2 . . . 7 3 Parts Rejected 1 | . . . . . 1 . . Parts Fused 1 | . . . . . . . 1 Data Loss (minor) 13 | . . 1 . . 1 6 5 Data Loss (major) 13 | . 2 1 . . 1 5 4 Misfires 9 | . 2 . . . . 4 3 Alerts 1 | . . . . 1 . . . Weapon Failures 3 | . . . . . 1 . 2 Overload Shots . | . . . . . . . . Overflow Damage 181 | . . . . 8 167 . 6 Projectiles 16 | . . . . . 10 . 6 Explosions 53 | . . . . 8 45 . . Melee 112 | . . . . . 112 . . Knockbacks . | . . . . . . . . Impact . | . . . . . . . . Kinetic . | . . . . . . . . Secondary . | . . . . . . . . Self-Inflicted Damage 149 | . . 2 . 65 82 . . Shots 4 | . . . . 2 2 . . Rammed 1 | . . 1 . . . . . Targets Rammed 1 | . . 1 . . . . . Kicked . | . . . . . . . . Crushed . | . . . . . . . . Highest Temperature 440 | 110 42 194 . 20 440 419 366 Average Temperature 99 | 57 24 34 . 8 115 126 108 Received Heat Transfer 1701 | . 120 24 . . 378 432 747 Effects 7 | . . . . . 5 2 . Shutdowns 1 | . . . . . 1 . . Energy Bleed 1 | . . . . . 1 . . Interference 3 | . . . . . 3 . . Damage (minor) 2 | . . . . . . 2 . Siege Activations . | . . . . . . . . Martial Activations . | . . . . . . . . Shielding Activations . | . . . . . . . . Robots Disrupted . | . . . . . . . . Combat Hostiles . | . . . . . . . . Robots Corrupted 1 | . . . . . 1 . . Combat Hostiles 1 | . . . . . 1 . . Parts Fried 2 | . . . . . 2 . . Impact Corruptions 3 | . . . . . 3 . . Robots Melted 1 | . . . . . 1 . . Combat Hostiles 1 | . . . . . 1 . . Parts Melted 18 | 1 8 3 . . 5 . 1 Heat Transferred 10478 | 866 2035 1295 . 370 3480 888 1544 Parts Sabotaged . | . . . . . . . . Parts Stolen . | . . . . . . . . Parts Stripped . | . . . . . . . . Power Chain Reactions . | . . . . . . . . Alert | -11 -10 -10 -10 -9 -8 -8 -8 ------- Run | Yrd Mat Min Exi Min Mat Gar Mat Maximum Alert Level 5 | . . . . . 3 5 3 Low Security (%) 37 | 100 100 100 . 100 44 . . Level 1 2 | . . . . . 16 . . Level 2 17 | . . . . . 27 10 50 Level 3 24 | . . . . . 11 39 49 Level 4 13 | . . . . . . 39 . Level 5 3 | . . . . . . 10 . High Security . | . . . . . . . . Max Security . | . . . . . . . . Peak Influence 1780 | 15 113 105 . 106 784 1780 867 Initial 867 | . . 27 . . . 508 867 Average 575 | 3 46 33 . 16 321 1102 718 Influence Increases 3748 | 30 370 228 . 111 1240 1332 437 Destroy 0b10 Robot/C 1740 | . 260 140 . 80 620 420 220 Destroy 0b10 Robot/NC 210 | 30 45 . . 5 90 . 40 Destroy Leader 326 | . 48 30 . 10 142 30 66 Allied During Kill 24 | . . 13 . . . 8 3 Trap Triggered on 0b10 30 | . . . . . 30 . . Successful Hack 89 | . 17 . . . 44 6 22 Disable Machine 165 | . . . . . 120 . 45 Anti-Garrison Action 700 | . . . . . . 700 . Destroy Structure 284 | . . . . 16 134 108 26 Lose Combat Pursuer 180 | . . 45 . . 60 60 15 Influence Decreases 3060 | 30 299 257 42 111 457 335 1529 Entered New Map 1274 | . . 44 42 . . 275 913 Time Decay 1516 | 30 259 203 . 111 427 . 486 Lost Part 230 | . 40 10 . . 30 40 110 Lost Ally 40 | . . . . . . 20 20 Squads Dispatched 10 | . 2 . . . 4 . 4 Investigation 2 | . 1 . . . 1 . . Extermination . | . . . . . . . . Reinforcement 3 | . 1 . . . 2 . . Assault 5 | . . . . . 1 . 4 Garrison . | . . . . . . . . Intercept . | . . . . . . . . Searches Triggered . | . . . . . . . . Construction Impeded . | . . . . . . . . Haulers Reinforced . | . . . . . . . . Active Scanning Responses . | . . . . . . . . Cargo Convoy Interrupts . | . . . . . . . . Alert ID Control Effect 2 | . . . . . . 1 1 Stealth | -11 -10 -10 -10 -9 -8 -8 -8 --------- Run | Yrd Mat Min Exi Min Mat Gar Mat Distress Signals 7 | . . 3 . . 3 . 1 Communications Jammed . | . . . . . . . . Distress Signals . | . . . . . . . . Times Spotted 141 | . 22 21 . 4 45 25 24 Peak Tracking Total 13 | . 5 13 . 4 10 5 6 Tactical Retreats 10 | . . 4 . . 3 2 1 Traps | -11 -10 -10 -10 -9 -8 -8 -8 ------- Run | Yrd Mat Min Exi Min Mat Gar Mat Traps Triggered 19 | . 4 . . . 1 14 . Indirectly . | . . . . . . . . Trap Hack Attempts . | . . . . . . . . Triggered . | . . . . . . . . Disarmed . | . . . . . . . . Reprogrammed . | . . . . . . . . Reused 3 | . . . . . 3 . . Traps Extracted . | . . . . . . . . Installed 3 | . . . . . 3 . . Triggered 3 | . . . . . 3 . . Most Traps Carried 4 | . . . . 4 4 . . Machines | -11 -10 -10 -10 -9 -8 -8 -8 ---------- Run | Yrd Mat Min Exi Min Mat Gar Mat Machines Disabled 15 | . . . . . 8 4 3 Max in Single Turn 3 | . . . . . 3 1 1 Garrison Relay 4 | . . . . . . 4 . Machines Repaired . | . . . . . . . . Machines Dismantled . | . . . . . . . . Machines Sabotaged . | . . . . . . . . Overloaded Fab Kills . | . . . . . . . . Hacking | -11 -10 -10 -10 -9 -8 -8 -8 --------- Run | Yrd Mat Min Exi Min Mat Gar Mat Machines Accessed 22 | . 5 . 1 . 9 3 4 Terminals 17 | . 4 . . . 6 3 4 Fabricators . | . . . . . . . . Repair Stations 2 | . . . . . 2 . . Recycling Units 1 | . 1 . . . . . . Scanalyzers . | . . . . . . . . Garrison Access 1 | . . . . . 1 . . Total Hacks 78 | . 14 . 23 . 27 5 9 Successful 48 | . 5 . 23 . 11 2 7 Failed 30 | . 9 . . . 16 3 2 Catastrophic 1 | . . . . . . 1 . Database Lockouts . | . . . . . . . . Manual 33 | . 8 . . . 16 2 7 Terminals 47 | . 12 . . . 21 5 9 Fabricators . | . . . . . . . . Repair Stations 5 | . . . . . 5 . . Recycling Units 2 | . 2 . . . . . . Scanalyzers . | . . . . . . . . Garrison Access 1 | . . . . . 1 . . Terminal Hacks 30 | . 1 . 23 . 2 2 2 Record 23 | . . . 23 . . . . Part Schematic 1 | . . . . . 1 . . Prototype ID Bank 2 | . 1 . . . . . 1 Open Door 1 | . . . . . . 1 . Level Access Points 1 | . . . . . . . 1 Emergency Access Points 1 | . . . . . . 1 . Terminal Index 1 | . . . . . 1 . . Fabricator Hacks . | . . . . . . . . Repair Station Hacks 3 | . . . . . 3 . . Scan Component 2 | . . . . . 2 . . Repair 1 | . . . . . 1 . . Recycling Unit Hacks . | . . . . . . . . Scanalyzer . | . . . . . . . . Garrison Access Hacks 1 | . . . . . 1 . . Unlock Access 1 | . . . . . 1 . . Unauthorized Hacks 14 | . 4 . . . 5 . 5 Terminals 14 | . 4 . . . 5 . 5 Track 4 | . 1 . . . 1 . 2 Botnet 10 | . 3 . . . 4 . 3 Fabricators . | . . . . . . . . Repair Stations . | . . . . . . . . Recycling Units . | . . . . . . . . Scanalyzers . | . . . . . . . . Garrison Access . | . . . . . . . . Data Cores Recovered . | . . . . . . . . Used . | . . . . . . . . Hacking Detections 18 | . 5 . . . 7 2 4 Full Trace Events . | . . . . . . . . Feedback Events . | . . . . . . . . Feedback Blocked . | . . . . . . . . Robot Schematics Acquired . | . . . . . . . . Robots Built . | . . . . . . . . Authchips . | . . . . . . . . Time . | . . . . . . . . Total Robot Build Rating . | . . . . . . . . Part Schematics Acquired 1 | . . . . . 1 . . Parts Built . | . . . . . . . . Authchips . | . . . . . . . . Time . | . . . . . . . . Total Part Build Rating . | . . . . . . . . Parts Repaired 1 | . . . . . 1 . . Time 136 | . . . . . 136 . . Parts Recycled . | . . . . . . . . Recycled Matter . | . . . . . . . . Retrieved Matter . | . . . . . . . . Retrieved Components . | . . . . . . . . Parts Scanalyzed . | . . . . . . . . Part Schematics Acquired . | . . . . . . . . Parts Damaged . | . . . . . . . . Bothacking | -11 -10 -10 -10 -9 -8 -8 -8 ------------ Run | Yrd Mat Min Exi Min Mat Gar Mat Used RIF Installer 2 | . . . . . . 2 . Alert ID Control 1 | . . . . . . 1 . Robots Hacked 5 | . . . . . . 1 4 Non-combat 1 | . . . . . . . 1 Combat 4 | . . . . . . 1 3 Robot Hacks Applied 5 | . . . . . . 1 4 find_recycling 1 | . . . . . . . 1 streamctrl_high 2 | . . . . . . . 2 formatsys_high 2 | . . . . . . 1 1 Relay Couplers Released 14 | . . . . . . 14 . Machine Destruction 14 | . . . . . . 14 . Attached 3 | . . . . . . 2 1 Fabnet Peak Effective % . | . . . . . . . . Robots Rewired . | . . . . . . . . Allies Hacked . | . . . . . . . . Hacks Repelled . | . . . . . . . . Allies | -11 -10 -10 -10 -9 -8 -8 -8 -------- Run | Yrd Mat Min Exi Min Mat Gar Mat Total Allies 9 | . . 4 . . . 2 3 Largest Group 3 | . . 3 . . . 2 3 Highest-Rated Group 61 | . . 40 . . . 54 61 Highest-Rated Ally 39 | . . 31 . . . 39 29 Total Orders 1 | . . . . . . . 1 STAY 1 | . . . . . . . 1 Ally Attacks 78 | . . 32 . . . 20 26 Total Damage 1102 | . . 318 . . . 309 475 Kills 12 | . . 6 . . . 3 3 Allies Corrupted . | . . . . . . . . Allies Melted . | . . . . . . . . Intel | -11 -10 -10 -10 -9 -8 -8 -8 ------- Run | Yrd Mat Min Exi Min Mat Gar Mat Active Infowar (turns) 884 | 9 95 . . . 190 7 583 Sensors 626 | . . . . . 43 . 583 Terrain 251 | 9 95 . . . 147 . . Structural 7 | . . . . . . 7 . Robot Analysis Total . | . . . . . . . . Derelict Logs Recovered 3 | . . 2 . 1 . . . Drone Launches . | . . . . . . . . Drone Recoveries . | . . . . . . . . Exploration | -11 -10 -10 -10 -9 -8 -8 -8 ------------- Run | Yrd Mat Min Exi Min Mat Gar Mat Turns Passed 7418 | 138 669 722 187 652 1262 2521 1267 Spaces Moved 3877 | 66 475 594 186 557 713 893 393 Core 49 | 49 . . . . . . . Treads 166 | . . . . . . 159 7 Legs 758 | . . . . . . 434 324 Wheels 2904 | 17 475 594 186 557 713 300 62 Hover . | . . . . . . . . Flight . | . . . . . . . . Fastest Speed 50 | 50 80 95 95 95 95 125 155 Average Speed 149 | 106 90 95 95 108 118 242 241 Slowest Speed 470 | 150 95 95 95 110 155 470 400 Overloaded Moves . | . . . . . . . . Propulsion Burnouts . | . . . . . . . . Robots Hopped . | . . . . . . . . Potential Cave-ins . | . . . . . . . . Cave-ins Triggered . | . . . . . . . . Exploration Rate (%) 64 | 4 73 98 55 95 66 98 26 Regions Visited 7 Branch Regions 3 Pre-discovered Areas 2 | . . . 1 1 . . . Known Exits Taken 1 | . . . . . 1 . . Unknown Exits Taken 5 | 1 1 1 1 1 . . . Scrap Searched 4 | . . 1 . 3 . . . Spaces Dug 9 | . . . . . 1 3 5 Terrain Destroyed 182 | . . . . 20 151 3 8 Melee 6 | . . . . . 1 3 2 Projectile 16 | . . . . . 10 . 6 AOE 160 | . . . . 20 140 . . Terrain Rammed . | . . . . . . . . Walls Destroyed . | . . . . . . . . Machines Disabled . | . . . . . . . . Actions | -11 -10 -10 -10 -9 -8 -8 -8 --------- Run | Yrd Mat Min Exi Min Mat Gar Mat Total 4903 | 105 597 707 199 592 975 1124 604 Wait 231 | . 35 65 . 6 52 11 62 Move 3869 | 65 474 593 185 556 712 891 393 Hop . | . . . . . . . . Pick Up 157 | 16 16 11 6 8 47 24 29 Fast Attach . | . . . . . . . . Attach 56 | 6 9 4 . . 14 11 12 Detach 1 | . . . . . 1 . . Swap 87 | . 2 3 3 4 23 20 32 Drop 84 | 3 2 7 5 4 36 11 16 Fire 287 | 15 59 23 . 14 77 49 50 Melee 47 | . . . . . 10 28 9 Ram 1 | . . 1 . . . . . Kick . | . . . . . . . . Crush . | . . . . . . . . Escape Stasis 77 | . . . . . . 77 . Rewire 3 | . . . . . . 2 1 Trap 3 | . . . . . 3 . . Miscellaneous . | . . . . . . . . Route ------- -11/Scrapyard -10/Materials (discovered 2 exits: [*Mat] / [*Min]) -10/Mines (discovered 3 exits: [*Mat x2] / *Exi) -10/Exiles -9/Mines (discovered 2 exits: *Mat x2) -8/Materials (discovered 2 exits: *Fac / Gar) -8/Garrison (discovered 3 exits: *Mat x3) -8/Materials (discovered 3 exits: Fac x3) History --------- Turn | Location | Event 27 | -11/Scrapyard | Discovered new exit (range 15) 139 | -11/Scrapyard | Entered Materials 265 | -10/Materials | Lost 3 parts (1p1n1u) 302 | -10/Materials | Build established: Mutant 469 | -10/Materials | Discovered new exit (range 10) 659 | -10/Materials | Build established: Scavenger-Mutant 729 | -10/Materials | Discovered new exit (range 14) 808 | -10/Materials | Entered Mines 809 | -10/Mines | Assembled infested the area 809 | -10/Mines | Met a Derelict testing a Signal Generator 813 | -10/Mines | Found Signal Generator 814 | -10/Mines | Assisted by a Guerilla fighting off Assembled 876 | -10/Mines | Learned 2 Materials zone layouts 1163 | -10/Mines | Core integrity fell below 50% 1175 | -10/Mines | Learned 2 Materials zone layouts 1188 | -10/Mines | Assisted by bots powering up and referring to "LRC-V3" 1214 | -10/Mines | Discovered new exit (range 16) 1228 | -10/Mines | Received a Rocket Launcher from a helpful Derelict 1275 | -10/Mines | Found a damaged Exp. Sensor Array with a note attached 1278 | -10/Mines | Found Prototype Device 1436 | -10/Mines | Deemed a non-threat by the Exiles lab entrance 1436 | -10/Mines | Discovered new exit (range 5) 1451 | -10/Mines | Discovered new exit (range 9) 1530 | -10/Mines | Entered Exiles 1561 | -10/Exiles | Met 8R-AWN 1587 | -10/Exiles | Met EX-HEX 1640 | -10/Exiles | Met EX-DEC 1657 | -10/Exiles | Learned location of Zion (-7) 1707 | -10/Exiles | Discovered new exit (range 12) 1717 | -10/Exiles | Entered Mines 1780 | -9/Mines | Found a hidden stash of uninstalled traps 1812 | -9/Mines | Discovered new exit (range 8) 1947 | -9/Mines | Discovered new exit (range 6) 2081 | -9/Mines | Learned location of Storage (-7) 2369 | -9/Mines | Entered Materials 2369 | -8/Materials | Evolved 4 slots: Propulsion x1, Utility x2, Weapon x1 2369 | -8/Materials | Identified Exp. Sensor Array 2889 | -8/Materials | Repaired Broken Exp. Sensor Array 3129 | -8/Materials | Build established: Scavenger-Gunner 3256 | -8/Materials | Destroyed 8 combat bots 3408 | -8/Materials | Discovered new exit (range 13) 3569 | -8/Materials | First assault squad dispatched 3630 | -8/Materials | Identified exit to Garrison 3631 | -8/Materials | Entered Garrison 3745 | -8/Garrison | Triggered checkpoint 3799 | -8/Garrison | Discovered new exit (range 12) 3809 | -8/Garrison | Installed Relay Interface Framework 3816 | -8/Garrison | Build established: Gunner 3905 | -8/Garrison | Triggered checkpoint 3932 | -8/Garrison | Garrison Relay disabled 3993 | -8/Garrison | Triggered checkpoint 4020 | -8/Garrison | Discovered new exit (range 15) 4077 | -8/Garrison | Triggered checkpoint 4102 | -8/Garrison | Garrison Relay disabled 4770 | -8/Garrison | Build established: Bothacker-Mutant 4891 | -8/Garrison | Core integrity fell below 50% 5188 | -8/Garrison | Rescued a captive Derelict 5247 | -8/Garrison | Triggered checkpoint 5295 | -8/Garrison | Garrison Relay disabled 5433 | -8/Garrison | Expanded RIF knowledge: Alert ID Control 5755 | -8/Garrison | Discovered new exit (range 15) 5815 | -8/Garrison | Triggered checkpoint 5869 | -8/Garrison | Garrison Relay disabled 5949 | -8/Garrison | Triggered checkpoint 6152 | -8/Garrison | Entered Materials 6551 | -8/Materials | Build established: Bothacker-Tank 6552 | -8/Materials | First assault squad dispatched 6668 | -8/Materials | Identified exit to Factory 7172 | -8/Materials | Core integrity fell below 20% 7208 | -8/Materials | Lost 5 parts (2p2n1w) 7419 | -8/Materials | Destroyed by G-47 Trooper with Particle Gun Last Messages --------------- 07383_ Dropped Lgt. Treads. 07383_ Acquired Hvy. Assault Rifle. 07386_ &QPMZI2